Cogmind - Beta 9.6 @@@ ROGUE MODE // 2020.06.12 @ 09:58:00 Player: Demise Result: Destroyed by YI-UF0 with YI-UF0's Doublenader Performance ------------- Evolutions (0) 0 Regions Visited (2) 400 Robots Destroyed (25) 125 Value Destroyed (481) 481 Prototype IDs (2) 40 Alien Tech Used (0) 0 Bonus (0) 0 TOTAL SCORE: 1046 Bonus ------- None Cogmind --------- Core Integrity 0/250 Matter 256/300 Energy 80/160 System Corruption 1% Temperature Cool (0) Movement Rolling (140) Ox4 Location -10/Mines Parts ------- > --- POWER (1) -------- Light Nuclear Core > --- PROPULSION (2) --- Compact Wheel > --- UTILITY (2) ------ High-capacity Storage Unit High-capacity Storage Unit > --- WEAPON (2) ------- Assault Rifle > --- INVENTORY (20) --- Large Storage Unit Large Matter Pod (150) Visual Processing Unit Sensor Array Experimental Sensor Array Signal Interpreter Improved Terrain Scanner Seismic Analyzer Improved Targeting Computer Medium Armor Plating Medium Armor Plating Medium Armor Plating Medium Armor Plating Grenade Launcher Grenade Launcher Mining Laser Peak State ------------ > --- POWER ------------ Ion Engine > --- PROPULSION ------- Light Treads Light Treads > --- UTILITY ---------- High-capacity Storage Unit High-capacity Storage Unit > --- WEAPON ----------- Medium Laser Assault Rifle > --- INVENTORY -------- Light Nuclear Core Light Nuclear Core Heat Sink Improved Heat Sink Small Storage Unit Medium Matter Pod Sensor Array Improved Terrain Scanner Seismic Analyzer Improved Targeting Computer Medium Armor Plating Medium Armor Plating Medium Armor Plating Medium Armor Plating Assault Rifle Assault Rifle Grenade Launcher Mining Laser [Rating: 10] Favorites ----------- Power Ion Engine Engine Ion Engine Propulsion Light Treads Treads Light Treads Leg Aluminum Leg Wheel Wheel Utility High-capacity Storage Unit Device Improved Terrain Scanner Storage High-capacity Storage Unit Weapon Assault Rifle Energy Gun Medium Laser Ballistic Gun Assault Rifle Special Weapon Mining Laser Build | -11 -10 -10 ------- Run | Scr Mat Min Slots Evolved . | . . . Power . | . . . Propulsion . | . . . Utility . | . . . Weapon . | . . . Parts Attached 20 | 4 12 4 Power 1 | . . 1 Engine . | . . . Core 1 | . . 1 Reactor . | . . . Propulsion 7 | 3 2 2 Treads 3 | 1 2 . Leg . | . . . Wheel 4 | 2 . 2 Hover . | . . . Flight . | . . . Utility 4 | 1 3 . Device 1 | 1 . . Storage 3 | . 3 . Processor . | . . . Hackware . | . . . Protection . | . . . Artifact . | . . . Weapon 8 | . 7 1 Energy Gun 2 | . 2 . Energy Cannon . | . . . Ballistic Gun 5 | . 4 1 Ballistic Cannon . | . . . Launcher . | . . . Special Weapon 1 | . 1 . Impact Weapon . | . . . Slashing Weapon . | . . . Piercing Weapon . | . . . Special Melee Weapon . | . . . Unidentified Prototypes . | . . . Parts Lost 7 | . 1 6 Power 1 | . . 1 Propulsion 3 | . . 3 Utility . | . . . Weapon 3 | . 1 2 Highest Loss Streak 6 | . 1 6 Average Slot Usage (%) 99 | . 99 98 Engine 14 | . 14 14 Treads 27 | . 27 25 Device 1 | . 2 . Storage 26 | . 25 28 Energy Gun 7 | . 6 13 Ballistic Gun 20 | . 21 14 Naked Turns . | . . . Heaviest Build 73 | 13 73 73 Greatest Support 40 | 20 40 40 Greatest Overweight (x) 1 | . 1 1 Average Overweight (x) . | . . 1 Largest Inventory Capacity 20 | 6 20 20 Average Capacity 17 | 6 18 20 Most Carried 20 | 6 20 20 Average Carried 16 | 5 16 19 Final Capacity 20 | 6 20 20 Final Carried 20 | 6 20 16 Class Distribution -------------------- 77% | Hauler-Mutant 22% | Mutant Dominant Class ---------------- Hauler-Mutant | -10/Materials Hauler-Mutant | -10/Mines Resources | -11 -10 -10 ----------- Run | Scr Mat Min Matter Collected 1048 | 350 695 3 Remotely . | . . . Salvage Created 876 | 204 672 . Parts 64 | 18 46 . Haulers Intercepted 2 | . 2 . Recyclers Shooed 1 | . 1 . Parts Field Recycled . | . . . Retrieved Matter . | . . . Parts Self-Destructed . | . . . Prevented . | . . . Kills | -11 -10 -10 ------- Run | Scr Mat Min Combat Hostiles Destroyed 10 | . 10 . Guns 10 | . 10 . Classes Destroyed 6 | 3 3 . Worker 3 | 2 1 . Tunneler 5 | 5 . . Hauler 2 | . 2 . Recycler 2 | 1 1 . Watcher 3 | . 3 . Grunt 10 | . 10 . Best Kill Streak 5 | 4 5 . Combat Bots Only 4 | . 4 . Max Kills in Single Turn 1 | 1 1 . Gunslinging . | . . . Exploded . | . . . Melee . | . . . Uniques/NPCs Destroyed . | . . . Combat | -11 -10 -10 -------- Run | Scr Mat Min Damage Taken 1094 | . 575 519 Core 251 | . 95 156 Absorbed by Shields . | . . . Core Remaining (%) 100 | 100 . . Volleys Fired 98 | 15 72 11 Largest 2 | 2 2 2 Hottest 100 | 40 100 70 Shots Fired 187 | 30 141 16 Gun 184 | 30 138 16 Cannon . | . . . Launcher . | . . . Special 3 | . 3 . Kinetic 151 | 30 110 11 Thermal 36 | . 31 5 Explosive . | . . . Electromagnetic . | . . . Robot Hit Streak 17 | 17 13 4 Robot Miss Streak 6 | 2 6 2 Penetration Max . | . . . Secondary Targets 1 | . 1 . Max Gunslinging Chain 1 | . 1 . Shots Hit Robots 123 | 21 91 11 Core Hits 47 | 10 36 1 Critical Hits 2 | . 2 . Critical Kills . | . . . Critical Parts Destroyed 2 | . 2 . Melee Attacks . | . . . Impact . | . . . Slashing . | . . . Piercing . | . . . Sneak Attacks . | . . . Combat Hostiles . | . . . Follow-up Attacks . | . . . Damage Inflicted 1428 | 237 1039 152 Guns 1428 | 237 1039 152 Cannons . | . . . Explosions . | . . . Melee . | . . . Ramming . | . . . Kinetic 1176 | 237 824 115 Thermal 252 | . 215 37 Explosive . | . . . Electromagnetic . | . . . Impact . | . . . Slashing . | . . . Piercing . | . . . Highest Corruption 1 | . 1 1 Average Corruption 1 | . 1 1 Corruption Purged . | . . . Effects 11 | . 9 2 Message Errors 2 | . 2 . Energy Discharges 1 | . 1 . Data Loss (minor) 2 | . 1 1 Targeting Errors 6 | . 5 1 Overload Shots . | . . . Overflow Damage . | . . . Projectiles . | . . . Explosions . | . . . Melee . | . . . Knockbacks . | . . . Impact . | . . . Kinetic . | . . . Secondary . | . . . Self-Inflicted Damage . | . . . Shots . | . . . Rammed . | . . . Targets Rammed . | . . . Kicked . | . . . Crushed . | . . . Highest Temperature 90 | . 90 18 Average Temperature 18 | . 19 7 Received Heat Transfer 321 | . 321 . Siege Activations . | . . . Robots Corrupted . | . . . Combat Hostiles . | . . . Parts Fried . | . . . Impact Corruptions . | . . . Robots Melted . | . . . Combat Hostiles . | . . . Parts Melted . | . . . Heat Transferred 740 | . 629 111 Parts Sabotaged . | . . . Parts Stolen . | . . . Parts Stripped . | . . . Power Chain Reactions . | . . . Missiles Intercepted . | . . . Alert | -11 -10 -10 ------- Run | Scr Mat Min Peak Influence 217 | 40 217 . Average Influence 53 | 23 63 . Maximum Alert Level 1 | . 1 . Low Security (%) 95 | 100 93 100 Level 1 4 | . 6 . Level 2 . | . . . Level 3 . | . . . Level 4 . | . . . Level 5 . | . . . High Security . | . . . Max Security . | . . . Squads Dispatched 2 | . 2 . Investigation 2 | . 2 . Extermination . | . . . Reinforcement . | . . . Assault . | . . . Garrison . | . . . Intercept . | . . . Construction Impeded . | . . . Haulers Reinforced . | . . . Stealth | -11 -10 -10 --------- Run | Scr Mat Min Distress Signals 2 | . 2 . Communications Jammed . | . . . Distress Signals . | . . . Times Spotted 29 | . 27 2 Peak Tracking Total 5 | . 5 1 Tactical Retreats 8 | . 8 . Traps | -11 -10 -10 ------- Run | Scr Mat Min Traps Triggered 2 | . 2 . Indirectly . | . . . Trap Hack Attempts . | . . . Triggered . | . . . Disarmed . | . . . Reprogrammed 3 | . 3 . Reused 1 | . 1 . Traps Extracted . | . . . Installed . | . . . Triggered 1 | . 1 . Machines | -11 -10 -10 ---------- Run | Scr Mat Min Machines Disabled 1 | . 1 . Max in Single Turn 1 | . 1 . Machines Sabotaged . | . . . Garrisons Compromised . | . . . Overloaded Fab Kills . | . . . Fab Network Shutdowns . | . . . Hacking | -11 -10 -10 --------- Run | Scr Mat Min Machines Accessed 10 | . 10 . Terminals 8 | . 8 . Fabricators . | . . . Repair Stations 1 | . 1 . Recycling Units 1 | . 1 . Scanalyzers . | . . . Garrison Access . | . . . Total Hacks 28 | . 28 . Successful 21 | . 21 . Failed 7 | . 7 . Catastrophic 1 | . 1 . Database Lockouts . | . . . Manual 18 | . 18 . Terminals 25 | . 25 . Fabricators . | . . . Repair Stations 2 | . 2 . Recycling Units 1 | . 1 . Scanalyzers . | . . . Garrison Access . | . . . Terminal Hacks 11 | . 11 . Part Schematic 3 | . 3 . Prototype ID Bank 1 | . 1 . Branch Access Points 1 | . 1 . Unreport Threat 1 | . 1 . Locate Traps 3 | . 3 . Reprogram Traps 1 | . 1 . Hauler Manifests 1 | . 1 . Fabricator Hacks . | . . . Repair Station Hacks 2 | . 2 . Scan Component 1 | . 1 . Repair 1 | . 1 . Recycling Unit Hacks . | . . . Scanalyzer . | . . . Garrison Access Hacks . | . . . Unauthorized Hacks 8 | . 8 . Terminals 7 | . 7 . Track 3 | . 3 . Botnet 2 | . 2 . Disrupt 1 | . 1 . Operators 1 | . 1 . Fabricators . | . . . Repair Stations . | . . . Recycling Units 1 | . 1 . Tunnel 1 | . 1 . Scanalyzers . | . . . Garrison Access . | . . . Data Cores Recovered . | . . . Used . | . . . Hacking Detections 9 | . 9 . Full Trace Events 1 | . 1 . Feedback Events . | . . . Feedback Blocked . | . . . Robot Schematics Acquired . | . . . Robots Built . | . . . Matter . | . . . Time . | . . . Total Robot Build Rating . | . . . Part Schematics Acquired 3 | . 3 . Parts Built . | . . . Matter . | . . . Time . | . . . Total Part Build Rating . | . . . Parts Repaired 1 | . 1 . Time 26 | . 26 . Parts Recycled . | . . . Recycled Matter . | . . . Retrieved Matter . | . . . Retrieved Components . | . . . Parts Scanalyzed . | . . . Part Schematics Acquired . | . . . Parts Damaged . | . . . Bothacking | -11 -10 -10 ------------ Run | Scr Mat Min Used RIF Installer . | . . . Robots Hacked . | . . . Non-combat . | . . . Combat . | . . . Robot Hacks Applied . | . . . Relay Couplers Released . | . . . Robots Rewired . | . . . Allies Hacked . | . . . Hacks Repelled . | . . . Allies | -11 -10 -10 -------- Run | Scr Mat Min Total Allies . | . . . Largest Group . | . . . Highest-Rated Group . | . . . Highest-Rated Ally . | . . . Total Orders . | . . . Ally Attacks . | . . . Total Damage . | . . . Kills . | . . . Allies Corrupted . | . . . Allies Melted . | . . . Intel | -11 -10 -10 ------- Run | Scr Mat Min Robot Analysis Total . | . . . Derelict Logs Recovered . | . . . Drone Launches . | . . . Drone Recoveries . | . . . Exploration | -11 -10 -10 ------------- Run | Scr Mat Min Turns Passed 2148 | 138 1765 245 Spaces Moved 959 | 54 790 115 Core . | . . . Treads 918 | 13 790 115 Legs 2 | 2 . . Wheels 39 | 39 . . Hover . | . . . Flight . | . . . Fastest Speed 80 | 80 160 180 Average Speed 173 | 100 177 180 Slowest Speed 180 | 160 180 180 Overloaded Moves . | . . . Propulsion Burnouts . | . . . Robots Hopped . | . . . Cave-ins Triggered . | . . . Exploration Rate (%) 44 | 4 97 32 Regions Visited 2 Branch Regions 1 Pre-discovered Areas 1 | . 1 . Known Exits Taken 1 | . 1 . Unknown Exits Taken 1 | 1 . . Scrap Searched 1 | . . 1 Spaces Dug 3 | . 3 . Terrain Destroyed 3 | . 3 . Melee . | . . . Projectile 3 | . 3 . AOE . | . . . Actions | -11 -10 -10 --------- Run | Scr Mat Min Total 1264 | 116 1010 138 Wait 133 | 30 97 6 Move 957 | 53 789 115 Hop . | . . . Pick Up 33 | 7 25 1 Fast Attach 5 | 1 4 . Attach 9 | 3 2 4 Detach 1 | . 1 . Swap 6 | . 6 . Drop 22 | 7 14 1 Fire 98 | 15 72 11 Melee . | . . . Ram . | . . . Kick . | . . . Crush . | . . . Escape Stasis . | . . . Rewire . | . . . Trap . | . . . Miscellaneous . | . . . Route ------- -11/Scrapyard -10/Materials (discovered 4 exits: [*Mat x3] / *Min) -10/Mines History --------- Turn | Location | Event 16 | -11/Scrapyard | Discovered new exit (range 2) 139 | -11/Scrapyard | Entered Materials 250 | -10/Materials | Identified exit to Mines 307 | -10/Materials | Build established: Mutant 433 | -10/Materials | Discovered new exit (range 8) 787 | -10/Materials | Build established: Hauler-Mutant 992 | -10/Materials | Discovered new exit (range 10) 1523 | -10/Materials | Discovered new exit (range 12) 1578 | -10/Materials | Repaired Assault Rifle 1904 | -10/Materials | Entered Mines 1931 | -10/Mines | Found a damaged Exp. Sensor Array with a note attached 1935 | -10/Mines | Found Prototype Device 1982 | -10/Mines | Assisted by bots powering up and referring to "LRC-V3" 2126 | -10/Mines | Core integrity fell below 50% 2140 | -10/Mines | Core integrity fell below 20% 2149 | -10/Mines | Destroyed by YI-UF0 with YI-UF0's Doublenader Last Messages --------------- 02124_ The unstable cave ceiling collapses. 02125_ System corrupted: Component data lost. 02125_ The unstable cave ceiling collapses. 02127_ Assault Rifle destroyed. 02129_ The unstable cave ceiling collapses. 02129_ Lgt. Treads destroyed. 02132_ The unstable cave ceiling collapses. 02133_ K-01 Serf collects debris. 02135_ YI-UF0 mumbles something. 02135_ The unstable cave ceiling collapses. 02135_ Med. Laser destroyed. 02137_ The unstable cave ceiling collapses. 02137_ K-01 Serf collects debris. 02141_ The unstable cave ceiling collapses. 02145_ Destroyed Shock Absorption System. 02147_ System corrupted: Assault Rifle targeting data glitched. 02147_ K-01 Serf destroyed. 02147_ Ion Engine destroyed. 02147_ Com. Wheel destroyed. 02149_ The unstable cave ceiling collapses. Map ----- +----------------------------------------------------+ | ????????????????????????????????????## #??## | | ????????????????????????????????????# #?## # | | ????????????????????????????????????# ### # | | ????????????????????????????????????## ## """ # | | ????????????????????????????????????## ## """ | | ??????????????????????????####????### ## """ | | ?????????????????????????## ###### #### | | ?????????????????????????# #??### | | ?????????????????????????# ##????## # | | ????????????????????????## ##?????## # | | ???????????????????????## ##??##### # | | ?????????????????????### ##??## | | ?????????????????????# ##???# | | ????????????????????? ######????# ## | | ?????????????????????# ##?????????####?## # | | ????????????????????## ##????????????????#### | | ????????????????????? ##????????????????????? | | ????????????? ????### ??????????????????????? | | ???????????? ##?# ??????????????????????? | | ???????????? # ####???????????????????? | | ???????????? # #???????????????????? | | ???????????# ##??????????????????? | | ????????????# #??????????????????? | | ?????????????# ####???????????????? | | ?????????????????# #???????????????? | | ?????????????????# @ # #??????????????? | | ?????????????????# ## ##??????????????? | | ????????????????????# ??????????? | | ????????????????????# g #?????????? | | ????????????????????## ######?????????? | | ?????????????????????###### # ##??????????????? | | ??????????????????????????# #### #???????????????? | | ???????????????????????????##????#???????????????? | | ?????????????????????????????????????????????????? | | ?????????????????????????????????????????????????? | | ?????????????????????????????????????????????????? | | ?????????????????????????????????????????????????? | | ?????????????????????????????????????????????????? | | ?????????????????????????????????????????????????? | | ?????????????????????????????????????????????????? | | ?????????????????????????????????????????????????? | | ?????????????????????????????????????????????????? | | ?????????????????????????????????????????????????? | | ?????????????????????????????????????????????????? | | ?????????????????????????????????????????????????? | | ?????????????????????????????????????????????????? | | ?????????????????????????????????????????????????? | | ?????????????????????????????????????????????????? | | | | | +----------------------------------------------------+ Best States ------------- Heat Dissipation 25 Energy Generation 10 Energy Capacity 250 Matter Stores 300 Matter Capacity 300 Sight Range 16 Terrain Scan Range 16 Terrain Scan Density 10 Evasion (%) 44 Recoil Reduction 2 Item Schematics ----------------- Hcp. Storage Unit | -10/Materials | Hacked Hcp. Matter Pod | -10/Materials | Hacked Hcp. Battery | -10/Materials | Hacked Robot Schematics ------------------ None Fabricated ------------ Nothing Alien Tech Used ----------------- None Achievements -------------- None Challenges ------------ None Game ------ Seed CannonSwarmRigger Manual? 0 Play Time 00:17:27 Cumulative 223.8 hours Start 2020.06.12 @ 09:42:19 End 2020.06.12 @ 09:58:00 Sessions 1 Manual Loads 0 Difficulty Rogue Special Mode None Game No. 293 Rogue 282 Adventurer 11 Explorer 0 Win Type - Total 0 Types 0/0/0/0/0/0/0 Lore% 53 Gallery% 66 Achievement% 45 Wizard Run 0 Options --------- ASCII 0 Keyboard 1 Movement Numpad Keybinds 0 Fullscreen 1 Font 12/Terminus Map View 83x54 Tactical HUD 1 Map Filters NONE Filters NONE Steam 1 RUN: 00200f02-04ba-4a5e-b5ed-5780ad828f2f